fUST/lending_fUST_20251230
["ID","MTS","AMOUNT","RATE_DAILY","PERIOD"]
[400063099,1767059442506,-500.0,0.00025205,2]
[400063100,1767059442516,-250.0,0.00025205,2]
[400063101,1767059442526,-412.12210783,0.00025257,2]
[400063102,1767059442535,-500.0,0.00025283,7]
[400063103,1767059442544,-558.51,0.00025479,2]
[400063104,1767059442554,-3416.78,0.00025479,2]
[400063105,1767059442563,-1089.75963878,0.00025479,2]
[400063106,1767059442572,-500.0,0.00025479,2]
[400063107,1767059442581,-732.14,0.00025479,2]
[400063108,1767059442590,-571.9,0.00025479,2]
[400063109,1767059442600,-500.0,0.00025479,2]
[400063110,1767059442609,-456.59481078,0.00025479,2]
[400063111,1767059442618,-293.5,0.00025544,2]
[400063112,1767059442628,-312.0,0.00025547,2]
[400063113,1767059442637,-1038.8,0.000256,7]
[400063114,1767059442647,-412.12210783,0.00025683,2]
[400063115,1767059442656,-558.51,0.00025753,2]
[400063116,1767059442666,-3416.78,0.00025753,2]
[400063117,1767059442675,-1089.75963878,0.00025753,2]
[400063118,1767059442684,-500.0,0.00025753,2]
[400063119,1767059442693,-732.14,0.00025753,2]
[400063120,1767059442703,-571.9,0.00025753,2]
[400063121,1767059442712,-500.0,0.00025753,2]
[400063122,1767059442721,-350.0,0.00025753,2]
[400063123,1767059442731,-381.26667423,0.00025899,16]
[400063124,1767059442740,-500.0,0.00025982,7]
[400063125,1767059442749,-14378.8,0.00026,2]
[400063126,1767059442758,-772.41155252,0.00026017,2]
[400063127,1767059442767,-558.51,0.00026027,2]
[400063128,1767059442777,-3416.78,0.00026027,2]
[400063129,1767059442788,-1089.75963878,0.00026027,2]
[400063130,1767059442798,-500.0,0.00026027,2]
[400063131,1767059442807,-732.14,0.00026027,2]
[400063132,1767059442816,-571.9,0.00026027,2]
[400063133,1767059442826,-500.0,0.00026027,2]
[400063134,1767059442835,-412.12210783,0.0002611,2]
[400063135,1767059442845,-1782.05,0.000262,14]
[400063136,1767059442854,-558.51,0.00026301,2]
[400063137,1767059442863,-3416.78,0.00026301,2]
[400063138,1767059442872,-1089.75963878,0.00026301,2]
[400063139,1767059442882,-500.0,0.00026301,2]
[400063140,1767059442891,-732.14,0.00026301,2]
[400063141,1767059442900,-571.9,0.00026301,2]
[400063142,1767059442910,-500.0,0.00026301,2]
[400063143,1767059443014,-450.0,0.00026301,2]
[400063144,1767059443027,-412.12210783,0.00026536,2]
[400063145,1767059443038,-558.51,0.00026575,2]
[400063146,1767059443048,-3416.78,0.00026575,2]
[400063147,1767059443057,-1089.75963878,0.00026575,2]
[400063149,1767059443067,-500.0,0.00026575,2]
[400063152,1767059443078,-732.14,0.00026575,2]
[400063153,1767059443089,-571.9,0.00026575,2]
[400063155,1767059443100,-494.24833132,0.00026575,2]
[400063156,1767059443109,-586.741375,0.00026676,2]
[400063157,1767059443119,-500.0,0.00026702,7]
[400063158,1767059443129,-500.0,0.00026843,7]
[400063161,1767059443139,-558.51,0.00026849,2]
[400063163,1767059443148,-3416.78,0.00026849,2]
[400063165,1767059443157,-1089.75963878,0.00026849,2]
[400063167,1767059443167,-500.0,0.00026849,2]
[400063168,1767059443176,-732.14,0.00026849,2]
[400063169,1767059443185,-571.9,0.00026849,2]
[400063170,1767059443194,-550.0,0.00026849,2]
[400063171,1767059443203,-159.65,0.000269,7]
[400063172,1767059443212,-381.26667423,0.00026915,18]
[400063173,1767059443221,-412.12210783,0.00026962,2]
[400063174,1767059443230,-1025.42628154,0.00027,2]
[400063175,1767059443239,-1000.0,0.00027028,30]
[400063176,1767059443248,-1000.0,0.00027028,30]
[400063177,1767059443257,-293.5,0.00027062,2]
[400063178,1767059443266,-2317.23465756,0.00027063,2]
[400063179,1767059443276,-13730.741693,0.00027073,2]
[400063180,1767059443285,-4030.3070567,0.00027073,2]
[400063181,1767059443295,-89766.603776,0.00027073,2]
[400063182,1767059443305,-558.51,0.00027123,2]
[400063183,1767059443315,-3416.78,0.00027123,2]
[400063184,1767059443325,-1089.75963878,0.00027123,2]
[400063185,1767059443335,-524.77636018,0.00027123,2]
[400063186,1767059443344,-732.14,0.00027123,2]
[400063187,1767059443354,-571.9,0.00027123,2]
[400063188,1767059443364,-2015.6417872,0.00027168,2]
[400063189,1767059443373,-412.12210783,0.00027388,2]
[400063190,1767059443383,-5000.0,0.00027396,15]
[400063191,1767059443393,-558.51,0.00027397,2]
[400063192,1767059443403,-3416.78,0.00027397,2]
[400063193,1767059443412,-1089.75963878,0.00027397,2]
[400063194,1767059443421,-223.71043082,0.00027397,2]
[400063195,1767059443431,-156.59730157,0.00027397,2]
[400063196,1767059443440,-732.14,0.00027397,2]
[400063197,1767059443450,-571.9,0.00027397,2]
[400063198,1767059443459,-650.0,0.00027397,5]
[400063199,1767059443468,-300.0,0.00027397,2]
[400063200,1767059443477,-300.0,0.00027397,2]
[400063201,1767059443486,-300.0,0.00027397,2]
[400063202,1767059443495,-300.0,0.00027397,2]
[400063203,1767059443504,-300.0,0.00027397,2]
[400063204,1767059443513,-300.0,0.00027397,2]
[400063205,1767059443523,-300.0,0.00027397,2]
[400063206,1767059443532,-300.0,0.00027397,2]
[400063207,1767059443543,-300.0,0.00027397,2]
[400063208,1767059443552,-157.060797,0.00027397,5]
[400063209,1767059443562,-14378.8,0.000274,2]
[400063210,1767059443571,-339.0,0.00027547,2]
[400063211,1767059443582,-924.56323209,0.00027654,7]
[400063212,1767059443592,-558.51,0.00027671,2]
[400063213,1767059443602,-3416.78,0.00027671,2]
[400063214,1767059443611,-1095.33720375,0.00027671,2]
[400063215,1767059443620,-732.14,0.00027671,2]
[400063216,1767059443630,-571.9,0.00027671,2]
[400063217,1767059443640,-1038.8,0.000277,7]
[400063218,1767059443650,-402.11325834,0.000278,15]
[400063219,1767059443659,-412.12210783,0.00027815,2]
[400063220,1767059443669,-772.41155252,0.00027925,2]
[400063221,1767059443678,-381.26667423,0.00027932,19]
[400063222,1767059443688,-558.51,0.00027945,2]
[400063223,1767059443698,-3416.78,0.00027945,2]
[400063224,1767059443708,-732.14,0.00027945,2]
[400063225,1767059443718,-571.9,0.00027945,2]
[400063226,1767059443728,-750.0,0.00027945,5]
[400063227,1767059443737,-250.0,0.00027945,5]
[400063228,1767059443747,-250.0,0.00027945,5]
[400063229,1767059443756,-1017.0,0.00028,2]
[400063230,1767059443765,-158.0,0.00028137,28]
[400063231,1767059443774,-558.58157176,0.00028219,2]
[400063232,1767059443783,-3416.80026439,0.00028219,2]
[400063233,1767059443796,-732.36591857,0.00028219,2]
[400063234,1767059443806,-572.05908036,0.00028219,2]
[400063235,1767059443815,-412.12210783,0.00028241,2]
[400063236,1767059443824,-2000.0,0.00028425,7]
[400063237,1767059443834,-197.91669004,0.00028493,60]
[400063238,1767059443843,-199.3253144,0.00028493,60]
[400063239,1767059443855,-153.39224085,0.00028493,60]
[400063240,1767059443864,-500.0,0.00028493,2]
[400063242,1767059443873,-850.0,0.00028493,5]
[400063243,1767059443883,-350.0,0.00028493,5]
[400063244,1767059443893,-350.0,0.00028493,5]
[400063245,1767059443902,-293.5,0.00028581,3]
[400063246,1767059443912,-500.0,0.0002863,2]
[400063247,1767059443921,-412.12210783,0.00028667,2]
[400063248,1767059443930,-2000.0,0.00028764,7]
[400063249,1767059443939,-153.25052497,0.00028767,60]
[400063250,1767059443948,-158.01945857,0.00028767,60]
[400063251,1767059443957,-500.0,0.00028767,2]
[400063252,1767059443967,-500.0,0.00028767,7]
[400063253,1767059443976,-500.0,0.00028767,7]
[400063254,1767059443985,-500.0,0.00028767,7]
[400063255,1767059443994,-500.0,0.00028767,7]
[400063256,1767059444004,-500.0,0.00028767,7]
[400063257,1767059444014,-500.0,0.00028767,7]
[400063258,1767059444022,-500.0,0.00028767,7]
[400063259,1767059444032,-500.0,0.00028767,7]
[400063260,1767059444042,-500.0,0.00028767,7]
[400063261,1767059444051,-500.0,0.00028767,7]
[400063262,1767059444061,-500.0,0.00028767,7]
[400063263,1767059444072,-500.0,0.00028767,7]
[400063264,1767059444083,-500.0,0.00028767,7]
[400063265,1767059444092,-499.9764176,0.00028767,7]
[400063266,1767059444102,-772.41155252,0.00028771,2]
[400063267,1767059444113,-2000.0,0.00028773,7]
[400063268,1767059444124,-2000.0,0.00028781,7]
[400063269,1767059444133,-2000.0,0.0002879,7]
[400063270,1767059444142,-2000.0,0.00028799,7]
[400063271,1767059444153,-420.40063175,0.00028799,7]
[400063272,1767059444163,-1782.05,0.000288,14]
[400063273,1767059444172,-150.55,0.000288,2]
[400063274,1767059444182,-500.0,0.00028904,2]
[400063275,1767059444192,-875.69483952,0.0002892,2]
[400063276,1767059444201,-381.26667423,0.00028949,21]
[400063277,1767059444210,-5000.0,0.00028999,14]
[400063278,1767059444219,-5000.0,0.00028999,15]
[400063279,1767059444228,-200.0,0.00029,120]
[400063280,1767059444237,-1017.0,0.00029,2]
[400063281,1767059444248,-14378.8,0.00029,2]
[400063282,1767059444257,-164.55251332,0.00029041,60]
[400063283,1767059444266,-500.0,0.00029041,2]
[400063284,1767059444275,-950.0,0.00029041,5]
[400063285,1767059444284,-450.0,0.00029041,5]
[400063286,1767059444293,-450.0,0.00029041,5]
[400063287,1767059444303,-500.0,0.00029178,2]
[400063288,1767059444313,-150.55,0.000292,2]
[400063289,1767059444322,-500.0,0.00029315,2]
[400063290,1767059444331,-154.70329605,0.00029376,5]
[400063291,1767059444340,-156.89067996,0.00029376,5]
[400063292,1767059444351,-1038.8,0.000294,7]
[400063293,1767059444360,-500.0,0.00029452,2]
[400063294,1767059444370,-366.0,0.00029547,2]
[400063295,1767059444379,-500.0,0.00029589,2]
[400063296,1767059444388,-1050.0,0.00029589,5]
[400063297,1767059444397,-550.0,0.00029589,5]
[400063298,1767059444407,-550.0,0.00029589,5]
[400063299,1767059444416,-236.09,0.000296,2]
[400063300,1767059444425,-159.65,0.000296,7]
[400063301,1767059444434,-150.55,0.000296,2]
[400063302,1767059444443,-169.52,0.00029655,30]
[400063303,1767059444453,-2129.95910705,0.00029685,2]
[400063304,1767059444462,-2000.0,0.00029711,7]
[400063305,1767059444472,-500.0,0.00029726,2]
[400063306,1767059444481,-1000.0,0.00029731,30]
[400063307,1767059444491,-1000.0,0.00029731,30]
[400063308,1767059444500,-579.0,0.00029731,30]
[400063309,1767059444509,-564.14206822,0.00029863,2]
[400063310,1767059444519,-2129.95910705,0.00029879,2]
[400063311,1767059444528,-381.26667423,0.00029965,22]
[400063312,1767059444537,-5000.0,0.00029999,10]
[400063313,1767059444546,-5000.0,0.00029999,15]
[400063314,1767059444555,-5000.0,0.00029999,15]
[400063315,1767059444565,-162.35,0.0003,2]
[400063316,1767059444575,-1017.0,0.0003,7]
[400063317,1767059444584,-1015.95,0.0003,30]
[400063318,1767059444594,-150.55,0.0003,2]
[400063319,1767059444604,-5310.0,0.0003003,30]
[400063321,1767059444613,-456.0,0.0003003,30]
[400063322,1767059444622,-1015.95,0.0003006,30]
[400063323,1767059444632,-5000.0,0.00030063,3]
[400063324,1767059444641,-293.5,0.00030099,4]
[400063325,1767059444651,-200.0,0.000301,120]
[400063326,1767059444660,-772.41155252,0.00030117,2]
[400063327,1767059444670,-1150.0,0.00030137,5]
[400063328,1767059444679,-650.0,0.00030137,5]
[400063329,1767059444688,-650.0,0.00030137,5]
[400063330,1767059444698,-154.84372387,0.00030196,10]
[400063331,1767059444708,-156.47288383,0.00030196,10]
[400063332,1767059444717,-2129.95910705,0.000302,2]
[400063333,1767059444727,-150.55,0.000304,2]
[400063335,1767059444736,-2129.95910705,0.0003045,2]
[400063336,1767059444745,-5000.0,0.00030509,15]
[400063337,1767059444755,-2015.6417872,0.00030586,2]
[400063338,1767059444765,-688.45525342,0.00030685,5]
[400063339,1767059444774,-750.0,0.00030685,5]
[400063340,1767059444783,-750.0,0.00030685,5]
[400063341,1767059444794,-2129.95910708,0.000307,2]
[400063342,1767059444803,-1038.8,0.000308,7]
[400063343,1767059444813,-150.55,0.000308,2]
[400063344,1767059444822,-5000.0,0.00030899,7]
[400063345,1767059444831,-1782.05,0.000309,14]
[400063346,1767059444840,-226.03,0.00030944,30]
[400063347,1767059444850,-5000.0,0.00030957,15]
[400063348,1767059444860,-1517.96,0.00030958,30]
[400063349,1767059444869,-381.26667423,0.00030982,23]
[400063351,1767059444879,-31680.42381576,0.0003099,10]
[400063352,1767059444889,-2000.0,0.00030997,7]
[400063353,1767059444898,-5000.0,0.00030999,15]
[400063354,1767059444908,-5000.0,0.00030999,5]
[400063356,1767059444917,-514.84070869,0.00030999,5]
[400063357,1767059444926,-533.88981491,0.00030999,5]
[400063359,1767059444935,-553.64373807,0.00030999,5]
[400063361,1767059444944,-574.12855637,0.00030999,5]
[400063362,1767059444954,-595.37131296,0.00030999,5]
[400063363,1767059444963,-2487.15318209,0.00030999,5]
[400063364,1767059444972,-617.40005154,0.00030999,5]
[400063365,1767059444982,-2579.17784983,0.00030999,5]
[400063366,1767059444991,-640.24385345,0.00030999,5]
[400063367,1767059445001,-500.0,0.00030999,5]
[400063368,1767059445013,-663.93287602,0.00030999,5]
[400063369,1767059445024,-500.0,0.00030999,5]
[400063370,1767059445034,-688.49839244,0.00030999,5]
[400063371,1767059445044,-500.0,0.00030999,5]
[400063372,1767059445054,-713.97283296,0.00030999,5]
[400063373,1767059445064,-500.0,0.00030999,5]
[400063374,1767059445075,-239.26795246,0.00030999,5]
[400063375,1767059445087,-500.0,0.00030999,5]
[400063376,1767059445099,-250.0,0.00030999,5]
[400063377,1767059445109,-500.0,0.00030999,5]
[400063378,1767059445118,-500.0,0.00030999,5]
[400063379,1767059445129,-250.0,0.00030999,5]
[400063380,1767059445139,-500.0,0.00030999,5]
[400063381,1767059445148,-250.0,0.00030999,5]
[400063382,1767059445162,-153.68003934,0.00030999,5]
[400063383,1767059445171,-500.0,0.00030999,5]
[400063384,1767059445180,-250.0,0.00030999,5]
[400063385,1767059445190,-500.0,0.00030999,5]
[400063386,1767059445199,-250.0,0.00030999,5]
[400063387,1767059445208,-500.0,0.00030999,5]
[400063388,1767059445218,-250.0,0.00030999,5]
[400063389,1767059445228,-500.0,0.00030999,5]
[400063390,1767059445238,-159.63564005,0.00030999,5]
[400063391,1767059445248,-500.0,0.00030999,5]
[400063392,1767059445258,-500.0,0.00030999,5]
[400063393,1767059445268,-160.82945374,0.00031,120]
[400063394,1767059445278,-938.12884337,0.00031,120]
[400063395,1767059445288,-506.17588889,0.00031,120]
[400063396,1767059445298,-180.65011172,0.00031,120]
[400063397,1767059445307,-918.36600687,0.00031,120]
[400063398,1767059445317,-188.17162424,0.00031,120]
[400063399,1767059445326,-161.90452956,0.00031,120]
[400063400,1767059445336,-807.6383655,0.00031,120]
[400063401,1767059445346,-386.07338806,0.00031,120]
[400063402,1767059445355,-1076.02305799,0.00031,120]
[400063403,1767059445365,-1004.24326118,0.00031,120]
[400063404,1767059445374,-173.58710457,0.00031,120]
[400063405,1767059445383,-162.99,0.00031,7]
[400063406,1767059445392,-1017.0,0.00031,7]
[400063407,1767059445402,-5000.0,0.00031119,2]
[400063408,1767059445411,-4877.49577019,0.0003112,2]
[400063409,1767059445421,-152.0,0.0003112,7]
[400063410,1767059445431,-152.0,0.0003112,7]
[400063411,1767059445440,-346.0,0.0003112,7]
[400063412,1767059445449,-326.17108693,0.0003112,7]
[400063413,1767059445459,-152.0,0.0003112,7]
[400063414,1767059445469,-155.0,0.0003112,7]
[400063415,1767059445478,-152.0,0.0003112,7]
[400063416,1767059445488,-155.0,0.0003112,7]
[400063417,1767059445581,-152.0,0.0003112,7]
[400063418,1767059445607,-155.0,0.0003112,7]
[400063419,1767059445617,-152.0,0.0003112,7]
[400063420,1767059445628,-155.0,0.0003112,7]
[400063421,1767059445638,-152.0,0.0003112,7]
[400063422,1767059445647,-155.0,0.0003112,7]
[400063423,1767059445658,-171.63752996,0.0003112,7]
[400063424,1767059445667,-152.0,0.0003112,7]
[400063425,1767059445677,-152.0,0.0003112,7]
[400063426,1767059445687,-152.0,0.0003112,7]
[400063427,1767059445698,-152.0,0.0003112,7]
[400063428,1767059445707,-152.0,0.0003112,7]
[400063429,1767059445717,-152.0,0.0003112,7]
[400063430,1767059445727,-152.0,0.0003112,7]
[400063431,1767059445737,-152.0,0.0003112,7]
[400063432,1767059445747,-152.0,0.0003112,7]
[400063433,1767059445757,-152.0,0.0003112,7]
[400063434,1767059445766,-152.0,0.0003112,7]
[400063435,1767059445776,-264.0,0.0003112,7]
[400063436,1767059445786,-154.84372387,0.0003113,10]
[400063437,1767059445795,-236.09,0.000312,2]
[400063438,1767059445805,-150.55,0.000312,2]
[400063439,1767059445815,-164.61514998,0.00031233,5]
[400063440,1767059445824,-850.0,0.00031233,5]
[400063441,1767059445834,-1517.96,0.00031506,31]
[400063442,1767059445843,-615.30377937,0.00031506,120]
[400063443,1767059445855,-500.07925651,0.00031507,5]
[400063444,1767059445864,-393.0,0.00031547,2]
[400063445,1767059445874,-14378.79,0.000316,2]
[400063446,1767059445884,-150.55,0.000316,2]
[400063447,1767059445893,-293.5,0.00031618,4]
[400063448,1767059445902,-304.28298,0.000317,120]
[400063449,1767059445912,-151.0,0.000317,18]
[400063450,1767059445922,-159.65,0.000317,7]
[400063451,1767059445931,-200.0,0.000317,120]
[400063452,1767059445940,-1995.0,0.00031707,2]
[400063453,1767059445950,-473.0,0.00031734,2]
[400063455,1767059445959,-950.0,0.00031781,5]
[400063456,1767059445969,-473.0,0.00031813,2]
[400063457,1767059445979,-899.283059,0.00031832,2]
[400063458,1767059445989,-473.0,0.00031855,2]
[400063459,1767059445998,-10854.29612148,0.000319,2]
[400063461,1767059446018,-21818.8391087,0.000319,2]
[400063462,1767059446029,-11245.81060533,0.000319,2]
[400063463,1767059446039,-160.82945374,0.000319,120]
[400063464,1767059446048,-938.12884337,0.000319,120]
[400063466,1767059446058,-506.17588889,0.000319,120]
[400063467,1767059446067,-180.65011172,0.000319,120]
[400063468,1767059446080,-918.36600687,0.000319,120]
[400063469,1767059446089,-188.17162424,0.000319,120]
[400063470,1767059446099,-161.90452956,0.000319,120]
[400063471,1767059446109,-807.6383655,0.000319,120]
[400063472,1767059446118,-386.07338806,0.000319,120]
[400063473,1767059446127,-1076.02305799,0.000319,120]
[400063474,1767059446136,-1004.24326118,0.000319,120]
[400063475,1767059446145,-173.58710457,0.000319,120]
[400063476,1767059446154,-381.26667423,0.00031999,25]
[400063477,1767059446163,-200.5099534,0.00032,2]
[400063478,1767059446173,-1017.0,0.00032,7]
[400063479,1767059446183,-160.0,0.00032014,3]
[400063480,1767059446193,-1517.96,0.00032054,32]
[400063481,1767059446202,-1995.0,0.00032068,2]
[400063482,1767059446211,-20029.6366765,0.00032071,2]
[400063483,1767059446221,-473.0,0.00032094,2]
[400063484,1767059446230,-473.0,0.0003211,2]
[400063485,1767059446239,-3063.7425929,0.00032115,2]
[400063486,1767059446248,-500.0,0.0003216,2]
[400063487,1767059446258,-1038.8,0.000322,7]
[400063489,1767059446267,-282.54,0.00032233,30]
[400063490,1767059446276,-2000.0,0.00032283,7]
[400063491,1767059446286,-473.0,0.00032319,2]
[400063492,1767059446295,-1050.0,0.00032329,5]
[400063493,1767059446304,-14378.8,0.000324,2]
[400063494,1767059446314,-300.0,0.00032411,2]
[400063496,1767059446323,-300.0,0.00032411,2]
[400063498,1767059446333,-300.0,0.00032411,2]
[400063500,1767059446342,-300.0,0.00032411,2]
[400063502,1767059446353,-300.0,0.00032411,2]
[400063504,1767059446362,-300.0,0.00032411,2]
[400063505,1767059446371,-300.0,0.00032411,2]
[400063507,1767059446381,-300.0,0.00032411,2]
[400063508,1767059446389,-300.0,0.00032438,2]
[400063509,1767059446399,-300.0,0.00032438,2]
[400063510,1767059446408,-300.0,0.00032438,2]
[400063511,1767059446418,-300.0,0.00032438,2]
[400063512,1767059446427,-300.0,0.00032438,2]
[400063513,1767059446436,-300.0,0.00032438,2]
[400063514,1767059446446,-300.0,0.00032438,2]
[400063515,1767059446455,-300.0,0.00032438,2]
[400063516,1767059446466,-300.0,0.00032466,2]
[400063517,1767059446475,-300.0,0.00032493,2]
[400063518,1767059446484,-300.0,0.00032493,2]
[400063519,1767059446494,-300.0,0.00032493,2]
[400063520,1767059446503,-300.0,0.00032493,2]
[400063521,1767059446513,-300.0,0.00032493,2]
[400063522,1767059446522,-300.0,0.00032493,2]
[400063523,1767059446531,-300.0,0.00032493,2]
[400063524,1767059446541,-473.0,0.00032499,2]
[400063525,1767059446550,-1782.05,0.000325,14]
[400063526,1767059446559,-14378.8,0.000325,2]
[400063527,1767059446571,-300.0,0.00032521,2]
[400063528,1767059446581,-300.0,0.00032521,2]
[400063529,1767059446591,-300.0,0.00032521,2]
[400063530,1767059446600,-300.0,0.00032521,2]
[400063531,1767059446610,-300.0,0.00032521,2]
[400063533,1767059446619,-300.0,0.00032521,2]
[400063534,1767059446628,-300.0,0.00032521,2]
[400063536,1767059446638,-300.0,0.00032521,2]
[400063538,1767059446647,-1517.96,0.00032602,33]
[400063539,1767059446656,-5547.0,0.00032635,7]
[400063541,1767059446666,-11638.6,0.000327,8]
[400063543,1767059446675,-1000.0,0.00032704,30]
[400063545,1767059446685,-1000.0,0.00032704,30]
[400063547,1767059446695,-1000.0,0.00032704,30]
[400063549,1767059446704,-473.0,0.00032812,2]
[400063551,1767059446713,-473.0,0.00032858,2]
[400063553,1767059446722,-1015.70893362,0.00032876,120]
[400063555,1767059446731,-575.02,0.00032876,2]
[400063557,1767059446741,-575.02,0.00032876,2]
[400063559,1767059446751,-575.02,0.00032876,2]
[400063561,1767059446760,-575.02,0.00032876,2]
[400063563,1767059446770,-575.02,0.00032876,2]
[400063565,1767059446779,-575.02,0.00032876,2]
[400063566,1767059446788,-575.02,0.00032876,2]
[400063568,1767059446798,-575.02,0.00032876,2]
[400063570,1767059446807,-575.02,0.00032876,2]
[400063572,1767059446817,-575.02,0.00032876,2]
[400063574,1767059446827,-575.02,0.00032876,2]
[400063576,1767059446837,-575.02,0.00032876,2]
[400063578,1767059446846,-575.02,0.00032876,2]
[400063580,1767059446857,-575.02,0.00032876,2]
[400063582,1767059446867,-575.02,0.00032876,2]
[400063584,1767059446876,-575.02,0.00032876,2]
[400063586,1767059446887,-575.02,0.00032876,2]
[400063588,1767059446896,-575.02,0.00032876,2]
[400063590,1767059446906,-575.02,0.00032876,2]
[400063592,1767059446915,-575.02,0.00032876,2]
[400063594,1767059446924,-575.02,0.00032876,2]
[400063596,1767059446933,-575.02,0.00032876,2]
[400063598,1767059446943,-575.02,0.00032876,2]
[400063600,1767059446953,-575.2218476,0.00032876,2]
[400063602,1767059446962,-233.58774294,0.00032876,2]
[400063604,1767059446971,-200.0,0.00032877,24]
[400063605,1767059446981,-1992.41,0.00032877,10]
[400063606,1767059446990,-1660.34,0.00032877,10]
[400063608,1767059447000,-1383.61,0.00032877,10]
[400063610,1767059447009,-1153.01,0.00032877,10]
[400063612,1767059447018,-500.0,0.00032877,5]
[400063614,1767059447027,-1150.0,0.00032877,5]
[400063615,1767059447036,-200.6571729,0.00032893,2]
[400063617,1767059447045,-938.12884337,0.000329,120]
[400063619,1767059447054,-506.17588889,0.000329,120]
[400063621,1767059447063,-180.65011172,0.000329,120]
[400063623,1767059447075,-918.36600687,0.000329,120]
[400063625,1767059447084,-188.17162424,0.000329,120]
[400063627,1767059447093,-161.90452956,0.000329,120]
[400063629,1767059447103,-807.6383655,0.000329,120]
[400063631,1767059447113,-386.07338806,0.000329,120]
[400063632,1767059447122,-1076.02305799,0.000329,120]
[400063634,1767059447131,-1004.24326118,0.000329,120]
[400063636,1767059447141,-173.58710457,0.000329,120]
[400063638,1767059447150,-1017.0,0.00033,7]
[400063640,1767059447159,-5000.0,0.00033005,2]
[400063642,1767059447168,-381.26667423,0.00033015,26]
[400063644,1767059447178,-5547.0,0.00033073,2]
[400063646,1767059447187,-236.09,0.000331,2]
[400063648,1767059447196,-293.5,0.00033136,5]
[400063650,1767059447206,-1517.96,0.0003315,34]
[400063652,1767059447215,-586.741375,0.00033165,2]
[400063654,1767059447224,-1995.0,0.00033174,2]
[400063656,1767059447234,-4469.2160393,0.00033186,2]
[400063658,1767059447243,-1241.1395,0.0003322,30]
[400063660,1767059447252,-473.0,0.00033239,2]
[400063662,1767059447261,-683.6133754,0.0003324,2]
[400063664,1767059447270,-470.64460067,0.00033243,7]
[400063665,1767059447279,-1882.57840268,0.00033243,7]
[400063667,1767059447289,-780.46583806,0.00033243,7]
[400063669,1767059447299,-1009.95503032,0.00033243,7]
[400063672,1767059447309,-603.06202082,0.00033243,7]
[400063673,1767059447318,-304.28298,0.000333,120]
[400063675,1767059447333,-641.857,0.00033304,2]
[400063677,1767059447342,-2186.8,0.00033304,2]
[400063679,1767059447353,-219.971,0.00033304,2]
[400063681,1767059447363,-240.418,0.00033304,2]
[400063683,1767059447373,-250.0,0.00033304,2]
[400063685,1767059447382,-876.57053436,0.00033385,2]
[400063687,1767059447392,-1000.0,0.00033425,5]
[400063689,1767059447402,-1250.0,0.00033425,5]
[400063691,1767059447411,-339.05,0.00033523,30]
[400063693,1767059447421,-473.0,0.00033553,2]
[400063695,1767059447430,-2000.0,0.00033569,7]
[400063697,1767059447440,-1517.96,0.00033698,35]
[400063699,1767059447449,-250.0,0.00033699,5]
[400063701,1767059447459,-1038.8,0.000337,7]
[400063703,1767059447468,-473.0,0.00033809,2]
[400063705,1767059447477,-473.0,0.00033849,2]
[400063707,1767059447487,-473.0,0.00033863,2]
[400063709,1767059447497,-160.0,0.00033899,4]